bitfinex/quotes_ETHUSD_20230902
["timestamp","ask_amount","ask_price","bid_price","bid_amount"]
[1693676074672,6.72062762,1637.6,1637.4,1.49362947]
[1693676074817,4.2552956,1637.5,1637.4,0.58568844]
[1693676075016,4.2552956,1637.5,1637.4,0.1]
[1693676075320,3.61425904,1637.5,1637.4,0.1]
[1693676075878,3.61879059,1637.5,1637.4,0.1]
[1693676076055,4.71637584,1637.5,1637.4,0.1]
[1693676076967,3.05052482,1637.3,1637.2,0.48930604]
[1693676077259,4.64980965,1637.3,1637.1,30.67]
[1693676077872,0.00449774,1637.2,1637.1,0.1]
[1693676078017,0.46992848,1637.2,1637.1,0.1]
[1693676078217,2.17085498,1637.2,1637.1,0.1]
[1693676079268,3.76267055,1637.2,1637.1,0.1]
[1693676079776,3.76267055,1637.2,1637.1,4.73785404]
[1693676079777,0.00449774,1637.2,1637.1,4.73785404]
[1693676079934,0.00449774,1637.2,1637.1,8.21785404]
[1693676080428,0.00449774,1637.2,1637.1,8.69511495]
[1693676080630,3.05052482,1637.3,1637.1,8.69511495]
[1693676080826,3.05052482,1637.3,1637.2,6.08185404]
[1693676082168,3.05052482,1637.3,1637.2,7.63785404]
[1693676082734,0.13164482,1637.3,1637.2,8.50736554]
[1693676082969,0.13164482,1637.3,1637.2,8.98736554]
[1693676085307,0.13164482,1637.3,1637.2,15.14658633]
[1693676087427,0.13164482,1637.3,1637.2,14.27707483]
[1693676089086,0.13164482,1637.3,1637.2,7.63785404]
[1693676089305,3.69023875,1637.3,1637.2,7.63785404]
[1693676089612,6.34298051,1637.3,1637.2,7.63785404]
[1693676091730,7.30255141,1637.3,1637.2,7.63785404]
[1693676092072,6.34298051,1637.3,1637.2,7.63785404]
[1693676092266,7.30255141,1637.3,1637.2,7.63785404]
[1693676092501,7.30255141,1637.3,1637.2,3.0]
[1693676092807,8.24279609,1637.3,1637.1,5.13326091]
[1693676093012,3.29212777,1637.2,1637.1,8.21511495]
[1693676093504,4.25169867,1637.2,1637.1,8.21511495]
[1693676093685,4.25622468,1637.2,1637.1,8.21511495]
[1693676094203,3.29665378,1637.2,1637.1,8.21511495]
[1693676094411,4.25622468,1637.2,1637.1,8.21511495]
[1693676094820,4.25629817,1637.2,1637.1,8.21511495]
[1693676095410,4.25634692,1637.2,1637.1,8.21511495]
[1693676096513,3.61683867,1637.2,1637.1,8.21511495]
[1693676096724,3.61231266,1637.2,1637.1,8.21511495]
[1693676097523,4.13007972,1637.2,1637.1,8.21511495]
[1693676097724,4.13460573,1637.2,1637.1,8.21511495]
[1693676098927,4.13460573,1637.2,1637.1,6.65911495]
[1693676101925,4.13007972,1637.2,1637.1,6.65911495]
[1693676103350,4.76967547,1637.2,1637.1,6.65911495]
[1693676103550,4.13007972,1637.2,1637.1,6.65911495]
[1693676103726,4.13460573,1637.2,1637.1,6.65911495]
[1693676104252,4.77419095,1637.2,1637.1,6.65911495]
[1693676104757,4.76966494,1637.2,1637.1,6.65911495]
[1693676104926,4.13007972,1637.2,1637.1,6.65911495]
[1693676105258,4.76969733,1637.2,1637.1,6.65911495]
[1693676105617,4.13007972,1637.2,1637.1,6.65911495]
[1693676105820,4.13460573,1637.2,1637.1,6.65911495]
[1693676106633,7.77445884,1637.2,1637.1,6.65911495]
[1693676108344,7.77447899,1637.2,1637.1,6.65911495]
[1693676109291,6.61144518,1637.2,1637.1,3.57726091]
[1693676109444,9.37703777,1637.2,1637.1,0.57726091]
[1693676109956,8.0976099,1637.2,1637.1,0.1]
[1693676110258,9.37710096,1637.2,1637.1,0.1]
[1693676110434,8.0976099,1637.2,1637.1,0.1]
[1693676111677,8.0976099,1637.2,1636.9,0.59032178]
[1693676111678,3.05292471,1637.0,1636.9,0.59032178]
[1693676111992,4.3323756,1637.0,1636.9,0.1]
[1693676112151,9.70086599,1637.0,1636.9,0.1]
[1693676112354,11.80981125,1637.0,1636.9,0.1]
[1693676112676,10.53036036,1637.0,1636.9,0.1]
[1693676112853,10.53468548,1637.0,1636.9,0.1]
[1693676115538,8.93537186,1637.0,1636.9,0.1]
[1693676116870,8.93537186,1637.0,1636.6,3.45197046]
[1693676117037,3.55821435,1636.7,1636.6,6.5338245]
[1693676117234,6.21095611,1636.7,1636.6,6.5338245]
[1693676117485,7.16995764,1636.7,1636.6,6.5338245]
[1693676117661,6.21095611,1636.7,1636.6,6.5338245]
[1693676117853,7.17425415,1636.7,1636.6,6.5338245]
[1693676118172,6.21525262,1636.7,1636.6,6.5338245]
[1693676118373,7.17425415,1636.7,1636.6,6.5338245]
[1693676119465,6.5349198,1636.7,1636.6,6.5338245]
[1693676119661,7.17413049,1636.7,1636.6,6.5338245]
[1693676119866,6.5349198,1636.7,1636.6,6.5338245]
[1693676120668,7.31627865,1636.7,1636.6,6.5338245]
[1693676121346,6.5349198,1636.7,1636.6,6.5338245]
[1693676122378,7.17401336,1636.7,1636.6,6.5338245]
[1693676122576,7.17396388,1636.7,1636.6,3.45197046]
[1693676122942,6.5349198,1636.7,1636.6,3.45197046]
[1693676123145,7.17396419,1636.7,1636.6,3.0]
[1693676123346,7.17396419,1636.7,1636.5,4.656]
[1693676123571,4.52122243,1636.7,1636.5,7.73785404]
[1693676125257,4.35491001,1636.7,1636.5,7.73785404]
[1693676125490,5.31391154,1636.7,1636.5,7.73785404]
[1693676125684,3.29276299,1636.6,1636.5,7.73785404]
[1693676126275,1.70053183,1636.6,1636.5,7.73785404]
[1693676126474,3.29282107,1636.6,1636.5,7.73785404]
[1693676126871,4.2217455,1636.6,1636.5,3.1]
[1693676127077,5.06196287,1636.6,1636.5,0.1]
[1693676128269,5.70071071,1636.6,1636.5,0.1]
[1693676128468,5.70065164,1636.6,1636.5,0.1]
[1693676129774,5.70065164,1636.6,1636.4,1.556]
[1693676130074,2.91888,1636.5,1636.4,4.63785404]
[1693676130273,2.91888,1636.5,1636.4,7.63785404]
[1693676130797,2.92316097,1636.5,1636.4,7.63785404]
[1693676130985,2.92316097,1636.5,1636.4,8.13636208]
[1693676131916,2.91888,1636.5,1636.4,8.13636208]
[1693676134035,2.87251,1636.5,1636.4,15.68536641]
[1693676139401,2.87251,1636.5,1636.4,14.77841587]
[1693676139618,2.87251,1636.5,1636.4,14.29841587]
[1693676141068,4.57274809,1636.5,1636.4,11.21656183]
[1693676141419,6.68536473,1636.5,1636.4,11.21656183]
[1693676141866,6.68536473,1636.5,1636.4,11.21687949]
[1693676142466,6.68534679,1636.5,1636.4,11.21687949]
[1693676143434,3.39278976,1636.5,1636.4,11.21687949]
[1693676143637,3.39278976,1636.5,1636.4,14.29873353]
[1693676143852,2.87251,1636.5,1636.4,14.29873353]
[1693676144051,2.87251,1636.5,1636.4,15.82192122]
[1693676146356,2.87251,1636.5,1636.4,14.29873353]
[1693676151999,2.87251,1636.5,1636.4,9.66087949]
[1693676152176,6.48547462,1636.5,1636.4,3.49850804]
[1693676152576,7.00570985,1636.5,1636.4,0.49850804]
[1693676152778,7.00570985,1636.5,1636.4,1.556]
[1693676153076,8.20462129,1636.5,1636.4,4.556]
[1693676153273,8.20462129,1636.5,1636.4,1.556]
[1693676154601,8.20462129,1636.5,1636.4,7.7187597]
[1693676154808,8.20462129,1636.5,1636.4,10.7187597]
[1693676155325,8.20462129,1636.5,1636.4,10.7187729]
[1693676156785,9.48329,1636.5,1636.4,10.7187729]
[1693676156985,8.20462129,1636.5,1636.4,10.7187729]
[1693676159753,6.68706775,1636.5,1636.4,13.80062694]
[1693676159917,5.09466628,1636.5,1636.4,13.80062694]
[1693676163317,3.39274523,1636.5,1636.4,13.80062694]
[1693676163840,2.87251,1636.5,1636.4,13.80062694]
[1693676183980,2.87251,1636.5,1636.4,10.7187729]
[1693676184187,3.4344593,1636.5,1636.4,10.7187729]
[1693676186182,3.95332546,1636.5,1636.4,10.7187729]
[1693676191793,3.95332546,1636.5,1636.4,10.71845541]
[1693676196694,3.38744616,1636.5,1636.4,13.80030945]
[1693676197123,2.86858,1636.5,1636.4,13.80030945]
[1693676223472,2.86858,1636.5,1636.4,13.80017033]
[1693676234613,2.86858,1636.5,1636.4,14.28017033]
[1693676252019,3.93015698,1636.5,1636.4,14.28017033]
[1693676252926,2.86858,1636.5,1636.4,14.28017033]
[1693676254424,3.93015626,1636.5,1636.4,14.28017033]
[1693676254610,4.57073929,1636.5,1636.4,14.28017033]
[1693676257190,4.57073929,1636.5,1636.4,15.75777921]
[1693676258325,4.57073929,1636.5,1636.4,14.28017033]
[1693676260233,4.57073929,1636.5,1636.4,14.28037657]
[1693676262137,4.57073929,1636.5,1636.4,14.23037657]
[1693676262804,6.16312787,1636.5,1636.4,14.23037657]
[1693676263000,4.57073929,1636.5,1636.4,14.23037657]
[1693676263439,6.16312752,1636.5,1636.4,14.23037657]
[1693676263738,6.64425691,1636.5,1636.4,14.23037657]
[1693676269552,6.64527603,1636.5,1636.4,14.23037657]
[1693676269842,6.16414664,1636.5,1636.4,14.23037657]
[1693676270841,6.64527603,1636.5,1636.4,14.23037657]
[1693676271941,6.64527603,1636.5,1636.4,13.75037657]
[1693676275251,7.60764921,1636.5,1636.4,13.75037657]
[1693676275412,6.64527603,1636.5,1636.4,13.75037657]
[1693676288564,6.64527603,1636.5,1636.4,14.23037657]
[1693676288933,6.16414664,1636.5,1636.4,14.23037657]
[1693676289145,6.16414664,1636.5,1636.4,15.70300608]
[1693676289441,6.63373243,1636.5,1636.4,15.70300608]
[1693676289783,6.16414664,1636.5,1636.4,15.70300608]
[1693676290286,6.63373243,1636.5,1636.4,15.70300608]
[1693676293993,6.63373243,1636.5,1636.4,14.23037657]
[1693676299204,5.04134172,1636.5,1636.4,14.23037657]
[1693676310219,5.04134172,1636.5,1636.4,14.23037978]
[1693676313916,9.39886072,1636.5,1636.3,2.05191849]
[1693676314088,3.61626671,1636.4,1636.3,4.63785404]
[1693676314418,5.02564827,1636.4,1636.3,10.80130298]
[1693676315417,5.02564827,1636.4,1636.3,13.80130298]
[1693676316010,5.02564827,1636.4,1636.3,10.80130298]
[1693676316917,5.02564827,1636.4,1636.3,4.63785404]
[1693676317815,5.02564827,1636.4,1636.3,1.556]
[1693676320529,5.6663676,1636.4,1636.3,1.556]
[1693676321735,4.70420554,1636.4,1636.3,1.556]
[1693676329933,3.76431947,1636.4,1636.3,4.63785404]
[1693676330233,2.17180863,1636.4,1636.3,4.63785404]
[1693676337047,2.86858,1636.3,1636.2,0.4869412]
[1693676337202,2.86858,1636.3,1636.0,30.67]
[1693676337203,7.76388795,1636.3,1636.0,0.1]
[1693676337402,3.50883098,1636.1,1636.0,0.1]
[1693676337606,2.86858,1636.1,1636.0,0.1]
[1693676337823,3.93052054,1636.1,1636.0,0.1]
[1693676338028,2.86858,1636.1,1636.0,1.656]
[1693676339767,3.33628546,1636.1,1636.0,1.656]
[1693676341917,3.7339391,1636.1,1636.0,1.656]
[1693676342844,3.7339391,1636.1,1636.0,0.1]
[1693676344449,3.33628546,1636.1,1636.0,1.656]
[1693676344810,3.50883098,1636.3,1636.0,6.29385404]
[1693676345115,2.86858,1636.3,1636.2,1.556]
[1693676345349,2.86858,1636.3,1636.2,4.63785404]
[1693676345512,3.33598486,1636.3,1636.2,4.63785404]
[1693676345941,5.03803519,1636.3,1636.2,4.63785404]
[1693676346751,5.03803519,1636.3,1636.2,1.556]
[1693676347074,6.63076371,1636.3,1636.2,1.556]
[1693676348120,7.38988075,1636.3,1636.2,1.556]
[1693676349447,6.63076371,1636.3,1636.2,1.556]
[1693676353143,6.63076371,1636.3,1636.2,4.63785404]
[1693676353345,3.33598486,1636.3,1636.2,13.80118445]
[1693676353726,2.86858,1636.3,1636.2,13.80118445]
[1693676354331,2.86858,1636.3,1636.2,15.1813029]
[1693676354530,2.86858,1636.3,1636.2,15.18131728]
[1693676360370,2.86858,1636.3,1636.2,15.66654521]
[1693676361370,2.86858,1636.3,1636.2,14.28642676]
[1693676362538,2.86858,1636.3,1636.2,14.76642676]
[1693676362947,0.64025098,1636.4,1636.2,14.76642676]
[1693676363276,3.29456294,1636.4,1636.3,4.63785404]
[1693676366553,3.29456294,1636.4,1636.3,7.63785404]
[1693676366986,3.76305216,1636.4,1636.3,7.63785404]
[1693676374492,2.17046493,1636.4,1636.3,7.63785404]
[1693676379500,2.17046493,1636.4,1636.3,6.08185404]
[1693676379661,3.76307763,1636.4,1636.3,6.08185404]
[1693676381166,4.7234843,1636.4,1636.3,6.08185404]
[1693676381593,5.82312495,1636.4,1636.3,3.0]
[1693676381765,5.82312495,1636.4,1636.2,2.04122793]
[1693676381970,2.86858,1636.3,1636.2,2.04122793]
[1693676382295,4.57059614,1636.3,1636.2,2.04122793]
[1693676382467,5.00450615,1636.3,1636.2,8.2047592]
[1693676382668,5.00450615,1636.3,1636.2,6.6487592]
[1693676382868,5.9176415,1636.3,1636.2,6.6487592]
[1693676385602,7.51030411,1636.3,1636.2,6.6487592]
[1693676389210,8.47071078,1636.3,1636.2,6.6487592]
[1693676395226,7.8304598,1636.3,1636.2,6.6487592]
[1693676399313,6.91732445,1636.3,1636.2,6.6487592]
[1693676411417,6.91732445,1636.3,1636.2,8.2047592]
[1693676411797,6.59826053,1636.3,1636.2,11.2047592]
[1693676411998,6.59826053,1636.3,1636.2,14.28661324]
[1693676412324,4.57168791,1636.3,1636.2,14.28661324]
[1693676415930,4.57168791,1636.3,1636.2,15.71527456]
[1693676416919,1.70310791,1636.3,1636.2,16.19527456]
[1693676417118,2.86858,1636.3,1636.2,16.19527456]
[1693676417437,3.93034516,1636.3,1636.2,16.19527456]
[1693676417898,4.57168791,1636.3,1636.2,16.19527456]
[1693676419209,4.47168791,1636.3,1636.2,16.19527456]
[1693676420732,1.60174942,1636.4,1636.2,16.19527456]
[1693676420924,4.25602735,1636.4,1636.3,15.42091277]
[1693676426828,4.25602735,1636.4,1636.3,13.80138531]
[1693676427630,4.68980791,1636.4,1636.3,13.80138531]
[1693676429844,3.72940124,1636.4,1636.3,13.80138531]
[1693676431348,3.72940124,1636.4,1636.3,7.63785404]
[1693676431532,3.72940124,1636.4,1636.3,13.80102614]
[1693676432056,3.72940124,1636.4,1636.3,13.80444244]
[1693676433167,3.72940124,1636.4,1636.3,14.28444244]
[1693676435260,3.72940124,1636.4,1636.3,14.28435026]
[1693676436030,3.72940124,1636.4,1636.3,14.28093396]
[1693676438431,3.72940124,1636.4,1636.3,15.75755015]
[1693676440185,2.13683448,1636.4,1636.3,15.75755015]
[1693676447765,0.43378056,1636.4,1636.3,15.75755015]
[1693676448168,6.47452942,1636.5,1636.3,15.75755015]
[1693676448373,0.64134275,1636.5,1636.4,8.19907992]
[1693676448568,0.64134275,1636.5,1636.4,15.90468898]
[1693676448774,1.70294918,1636.5,1636.4,15.90468898]
[1693676453774,0.64134275,1636.6,1636.4,15.90468898]
[1693676454073,0.64134275,1636.6,1636.5,15.35693396]
[1693676454074,1.70289823,1636.6,1636.5,15.35693396]
[1693676454279,1.70289823,1636.6,1636.5,15.83693396]
[1693676454457,1.70289823,1636.6,1636.5,17.63100286]
[1693676458780,6.48192942,1636.7,1636.5,17.63100286]
[1693676458981,6.48192942,1636.7,1636.6,2.036]
[1693676459148,9.13577119,1636.7,1636.6,5.11785404]
[1693676459344,9.13577119,1636.7,1636.6,8.11785404]
[1693676459548,9.13577119,1636.7,1636.6,9.56464633]
[1693676466411,8.17536452,1636.7,1636.6,9.56464633]
[1693676467192,9.13577119,1636.7,1636.6,9.56464633]
[1693676467366,8.17536452,1636.7,1636.6,9.56464633]
[1693676468193,3.29518452,1636.7,1636.6,9.56464633]
[1693676468493,1.70287946,1636.7,1636.6,9.56464633]
[1693676469004,0.64134275,1636.7,1636.6,9.56464633]
[1693676470088,1.70287946,1636.7,1636.6,9.56464633]
[1693676470479,2.77834275,1636.8,1636.6,9.56464633]
[1693676470679,2.77834275,1636.8,1636.7,6.08185404]
[1693676470880,5.43204018,1636.8,1636.7,6.56185404]
[1693676471288,5.43204018,1636.8,1636.7,7.51831867]
[1693676471979,5.91748125,1636.8,1636.7,9.07431867]
[1693676475200,5.43204018,1636.8,1636.7,9.07431867]
[1693676490924,3.29504018,1636.8,1636.7,9.07431867]
[1693676491433,2.23356121,1636.8,1636.7,9.07431867]
[1693676491621,3.29504018,1636.8,1636.7,15.23603165]
[1693676505124,3.29504018,1636.8,1636.7,13.68003165]
[1693676505345,3.29504018,1636.8,1636.7,15.23603165]
[1693676512169,3.29504018,1636.8,1636.7,9.07431867]
[1693676512374,3.29504018,1636.8,1636.7,15.2358054]
[1693676514075,4.25544685,1636.8,1636.7,15.2358054]
[1693676514447,3.6141041,1636.8,1636.7,15.2358054]
[1693676516583,8.82585315,1636.8,1636.7,6.08185404]
[1693676516778,10.42980846,1636.8,1636.7,3.0]
[1693676516945,8.82810008,1636.8,1636.7,3.0]
[1693676517143,10.91737887,1636.8,1636.7,3.0]
[1693676517444,9.63458971,1636.8,1636.6,0.49508532]
[1693676517664,5.86204611,1636.7,1636.5,3.0]
[1693676517869,2.24488971,1636.7,1636.6,6.16237686]
[1693676518055,4.89880068,1636.7,1636.6,9.16237686]
[1693676519459,3.61600656,1636.7,1636.6,9.16237686]
[1693676520294,4.89880068,1636.7,1636.6,9.16237686]
[1693676522187,6.0598638,1636.7,1636.6,3.0]
[1693676522390,4.89856798,1636.7,1636.6,3.0]
[1693676524394,6.05989107,1636.7,1636.6,3.0]
[1693676526590,4.89822621,1636.7,1636.6,3.0]
[1693676529365,2.76858,1636.5,1636.4,49.28836079]
[1693676529583,6.06339195,1636.5,1636.4,55.37021483]
[1693676532295,6.54865982,1636.5,1636.4,55.37021483]
[1693676532600,4.95631324,1636.5,1636.4,55.37021483]
[1693676536814,3.25384787,1636.5,1636.4,55.37021483]
[1693676542424,4.95643953,1636.5,1636.4,55.37021483]
[1693676545308,6.54897616,1636.5,1636.4,55.37021483]
[1693676551737,7.51032764,1636.5,1636.4,55.37021483]
[1693676552235,7.51032764,1636.5,1636.4,52.28836079]
[1693676553297,6.86942666,1636.5,1636.4,52.28836079]
[1693676553502,7.50967998,1636.5,1636.4,52.28836079]
[1693676553702,6.86942666,1636.5,1636.4,52.28836079]
[1693676554232,7.50968549,1636.5,1636.4,52.28836079]
[1693676554455,6.86942666,1636.5,1636.4,52.28836079]
[1693676560308,8.15122863,1636.5,1636.4,52.28836079]
[1693676562239,8.15122863,1636.5,1636.4,58.4514912]
[1693676562539,9.31326801,1636.5,1636.4,58.4514912]
[1693676562841,8.1516327,1636.5,1636.4,58.4514912]
[1693676567353,6.86983073,1636.5,1636.4,58.4514912]
[1693676568356,8.1516327,1636.5,1636.4,58.4514912]
[1693676571247,9.31327701,1636.5,1636.4,58.4514912]
[1693676571959,9.31327701,1636.5,1636.4,60.0074912]
[1693676574252,9.31327701,1636.5,1636.4,60.00748892]
[1693676586658,9.31327701,1636.5,1636.4,8.19748892]
[1693676586862,10.91723232,1636.5,1636.4,8.19748892]
[1693676599291,9.31327701,1636.5,1636.4,8.19748892]
[1693676599458,10.91723232,1636.5,1636.4,8.19748892]
[1693676599659,9.31327701,1636.5,1636.4,8.19748892]
[1693676600686,9.31327701,1636.5,1636.4,11.27934296]
[1693676600891,6.73559432,1636.5,1636.4,12.42596902]
[1693676601182,6.73559432,1636.5,1636.4,15.42596902]
[1693676604792,7.35018625,1636.5,1636.4,15.42596902]
[1693676605092,7.35018625,1636.5,1636.4,15.90596902]
[1693676605499,6.86491838,1636.5,1636.4,15.90596902]
[1693676606064,5.90236924,1636.5,1636.4,15.90596902]
[1693676606264,6.38608954,1636.5,1636.4,15.90596902]
[1693676612705,4.78818291,1636.5,1636.4,15.90596902]
[1693676613208,4.30446261,1636.5,1636.4,15.90596902]
[1693676613572,2.60125,1636.5,1636.4,15.90596902]
[1693676614800,0.64152193,1636.6,1636.4,15.90596902]
[1693676615000,0.64152193,1636.6,1636.5,15.87157907]
[1693676615201,3.29542586,1636.6,1636.5,15.87157907]
[1693676615684,3.77922748,1636.6,1636.5,15.87157907]
[1693676616072,3.29542586,1636.6,1636.5,15.87157907]
[1693676617279,1.70308498,1636.6,1636.5,15.87157907]
[1693676618891,1.70308498,1636.6,1636.5,15.87067546]
[1693676619704,4.20532107,1636.7,1636.5,15.87067546]
[1693676619900,4.20532107,1636.7,1636.6,3.14306755]
[1693676620208,6.85916303,1636.7,1636.6,9.70492159]
[1693676622715,5.89661389,1636.7,1636.6,9.70492159]
[1693676625996,5.89661389,1636.7,1636.6,8.14892159]
[1693676626301,5.89661389,1636.7,1636.6,9.70492159]
[1693676626502,6.38046384,1636.7,1636.6,9.70492159]
[1693676628141,4.78815866,1636.7,1636.6,9.70492159]
[1693676628428,4.30430871,1636.7,1636.6,9.70492159]
[1693676633115,4.30430871,1636.7,1636.6,10.18290285]
[1693676635231,2.60125,1636.7,1636.6,10.18290285]
[1693676635445,3.19040187,1636.9,1636.6,16.34441509]
[1693676635623,2.60015187,1636.9,1636.7,14.35780779]
[1693676635822,2.60015187,1636.9,1636.8,1.556]
[1693676636022,2.60015187,1636.9,1636.8,5.11785404]
[1693676636023,3.66153177,1636.9,1636.8,5.11785404]
[1693676636228,3.66153177,1636.9,1636.8,8.11785404]
[1693676636552,3.66153177,1636.9,1636.8,9.39308359]
[1693676637250,4.14553017,1636.9,1636.8,9.39308359]
[1693676637648,6.74678017,1636.9,1636.8,9.39308359]
[1693676640761,5.0962484,1636.9,1636.8,9.39308359]
[1693676641468,4.61225,1636.9,1636.8,9.39308359]
[1693676641969,5.67362814,1636.9,1636.8,9.39308359]
[1693676642358,6.15762654,1636.9,1636.8,9.39308359]
[1693676645275,7.7496945,1636.9,1636.8,9.39308359]
[1693676645478,8.3899305,1636.9,1636.8,9.39308359]
[1693676647084,5.7886805,1636.9,1636.8,9.39308359]
[1693676647779,5.7886805,1636.9,1636.8,9.89344113]
[1693676648182,8.3899305,1636.9,1636.8,9.89344113]
[1693676648784,8.3899305,1636.9,1636.8,10.07243887]
[1693676654490,8.3899305,1636.9,1636.8,8.79720932]
[1693676659989,6.79786254,1636.9,1636.8,8.79720932]
[1693676666393,4.78686254,1636.9,1636.8,8.79720932]
[1693676668274,6.37893163,1636.9,1636.8,8.79720932]
[1693676670509,7.34148077,1636.9,1636.8,7.24120932]
[1693676670706,9.06447501,1636.9,1636.8,0.50035754]
[1693676671011,10.2248786,1636.9,1636.6,3.47798126]
[1693676671175,2.60125,1636.7,1636.6,6.5598353]
[1693676671374,2.60125,1636.7,1636.6,12.72171961]
[1693676672107,3.66273726,1636.7,1636.6,12.72171961]
[1693676672615,4.30341817,1636.7,1636.6,12.72171961]
[1693676674587,4.30341817,1636.7,1636.6,12.72178504]
[1693676675612,4.30341817,1636.7,1636.6,12.72179267]
[1693676678919,5.89566187,1636.7,1636.6,12.72179267]
[1693676683925,4.30341817,1636.7,1636.6,12.72179267]
[1693676692055,5.89569882,1636.7,1636.6,9.63993863]
[1693676695942,5.89569882,1636.7,1636.6,3.47798126]
[1693676696143,5.89569882,1636.7,1636.6,0.47798126]
[1693676696349,6.37950168,1636.7,1636.4,4.556]
[1693676696546,5.86003377,1636.7,1636.5,6.16226181]
[1693676696846,5.86003377,1636.7,1636.6,3.0]
[1693676697019,8.03009344,1636.7,1636.6,3.0]
[1693676697224,8.03009344,1636.7,1636.5,3.0]
[1693676697448,5.37623091,1636.7,1636.5,3.0]
[1693676704365,6.33725227,1636.7,1636.5,3.0]
[1693676704961,6.33725227,1636.7,1636.5,4.556]
[1693676705168,5.37623091,1636.7,1636.5,4.556]
[1693676705362,6.33725227,1636.7,1636.5,4.556]
[1693676706269,5.37623091,1636.7,1636.5,4.556]
[1693676706674,4.25566898,1636.6,1636.4,0.48374435]
[1693676706847,4.20295227,1636.5,1636.3,50.366]
[1693676707044,4.68662548,1636.5,1636.3,50.366]
[1693676707464,6.85242548,1636.5,1636.3,50.366]
[1693676708073,6.85242548,1636.5,1636.4,3.0]
[1693676708275,8.54561959,1636.5,1636.4,3.0]
[1693676708439,9.50664095,1636.5,1636.4,3.0]
[1693676708639,9.50664095,1636.5,1636.3,50.366]
[1693676708840,6.85242548,1636.5,1636.3,50.86454795]
[1693676709266,5.89140412,1636.5,1636.3,50.86454795]
[1693676711370,6.70482686,1636.5,1636.3,50.86454795]
[1693676711575,6.70482686,1636.5,1636.3,49.30854795]
[1693676715174,7.66584822,1636.5,1636.3,49.30854795]
[1693676717149,3.72560412,1636.5,1636.3,50.86454795]
[1693676717369,3.72560412,1636.5,1636.4,1.556]
[1693676717569,5.89610976,1636.5,1636.4,4.63785404]
[1693676717977,6.37974999,1636.5,1636.4,4.63785404]
[1693676722386,4.78724268,1636.5,1636.4,4.63785404]
[1693676722787,6.37973537,1636.5,1636.4,4.63785404]
[1693676723758,4.78724268,1636.5,1636.4,4.63785404]
[1693676724178,6.37973318,1636.5,1636.4,4.63785404]
[1693676724500,4.78724268,1636.5,1636.4,4.63785404]
[1693676732087,4.78724268,1636.5,1636.4,4.6432178]
[1693676735308,6.37973052,1636.5,1636.4,4.6432178]
[1693676741015,6.37973052,1636.5,1636.4,10.80612415]
[1693676743820,6.37973052,1636.5,1636.4,16.81759136]
[1693676744030,3.08489023,1636.5,1636.4,20.29759136]
[1693676744190,2.60125,1636.5,1636.4,20.29759136]
[1693676745333,0.63252091,1636.6,1636.4,20.29759136]
[1693676745502,0.63252091,1636.6,1636.5,12.42401686]
[1693676745702,3.28642339,1636.6,1636.5,15.5058709]
[1693676746137,3.77017791,1636.6,1636.5,15.51122697]
[1693676748217,3.77017791,1636.6,1636.5,13.80611646]
[1693676758230,3.77017791,1636.6,1636.5,13.80549423]
[1693676760733,3.77017791,1636.6,1636.5,14.29631217]
[1693676761252,3.77839234,1636.6,1636.5,14.29631217]
[1693676762255,3.77839234,1636.6,1636.5,15.21072712]
[1693676764819,4.09877243,1636.6,1636.5,1.41058896]
[1693676765018,6.32060202,1636.6,1636.5,1.41058896]
[1693676765435,6.32060202,1636.6,1636.5,0.49617401]
[1693676768151,6.32060202,1636.6,1636.5,0.00535607]
[1693676768451,2.61917511,1636.4,1636.3,48.81]
[1693676768628,4.21997095,1636.4,1636.3,48.81]
[1693676768960,10.57279126,1636.4,1636.3,48.81]
[1693676769158,10.57279126,1636.4,1636.3,48.81455766]
[1693676772236,11.85237398,1636.4,1636.3,48.81455766]
[1693676772434,10.25157814,1636.4,1636.3,48.81455766]
[1693676772746,10.25157814,1636.4,1636.3,0.00455766]
[1693676772957,10.25157814,1636.4,1636.0,3.58133429]
[1693676773157,0.63966563,1636.2,1636.0,3.58133429]
[1693676773358,1.70121669,1636.2,1636.0,3.58133429]
[1693676773559,1.70121669,1636.2,1636.0,0.58133429]
[1693676774077,1.70121669,1636.2,1636.1,0.00457179]
[1693676774668,4.29987669,1636.2,1636.1,0.00457179]
[1693676775165,5.19734104,1636.2,1636.1,0.00457179]
[1693676777042,4.29987669,1636.2,1636.1,0.00457179]
[1693676778377,5.89268276,1636.2,1636.1,0.00457179]
[1693676780772,6.85218121,1636.2,1636.1,0.00457179]
[1693676781338,6.21251558,1636.2,1636.1,0.00457179]
[1693676781539,6.85137278,1636.2,1636.1,0.00457179]
[1693676781738,7.93347938,1636.2,1636.1,0.00457179]
[1693676781968,7.29462218,1636.2,1636.1,0.00457179]
[1693676784272,8.5742049,1636.2,1636.1,0.00457179]
[1693676786540,9.73855111,1636.2,1636.1,0.00457179]
[1693676787081,10.22198029,1636.2,1636.1,0.00457179]
[1693676788471,10.22198029,1636.2,1636.0,0.57486492]
[1693676788651,3.61193963,1636.1,1636.0,0.57486492]
[1693676789057,3.61193963,1636.1,1636.0,0.57926983]
[1693676789262,4.51751144,1636.1,1636.0,0.57926983]
[1693676792178,5.79709416,1636.1,1636.0,0.57926983]
[1693676793793,6.96339102,1636.1,1636.0,0.09793554]
[1693676794110,7.27948688,1636.1,1636.0,0.09793554]
[1693676794470,5.6838083,1636.1,1636.0,0.09793554]
[1693676794688,7.27939784,1636.1,1636.0,0.09793554]
[1693676795261,5.6838083,1636.1,1636.0,0.09793554]
[1693676795891,7.27935853,1636.1,1636.0,0.09793554]
[1693676796285,5.6838083,1636.1,1636.0,0.09793554]
[1693676797880,7.60476331,1636.1,1636.0,0.09793554]
[1693676798056,5.6838083,1636.1,1636.0,0.09793554]
[1693676798257,7.60476331,1636.1,1636.0,0.09793554]
[1693676798463,2.59866,1635.8,1635.7,79.8630556]
[1693676798662,4.83230414,1635.8,1635.7,79.8630556]
[1693676798890,7.48666127,1635.8,1635.7,49.2930556]
[1693676799065,8.65354971,1635.8,1635.7,49.29699425]
[1693676801377,9.69750746,1635.8,1635.7,49.29699425]
[1693676802168,11.77619587,1635.8,1635.7,49.29699425]
[1693676803263,10.49982779,1635.8,1635.7,49.29699425]
[1693676808275,10.49982779,1635.8,1635.7,48.65974899]
[1693676808475,10.49982779,1635.8,1635.7,47.52686686]
[1693676810635,8.90436769,1635.8,1635.7,47.52686686]
[1693676811022,10.50205826,1635.8,1635.7,47.52686686]
[1693676811520,8.90436769,1635.8,1635.7,47.52686686]
[1693676812209,10.50241513,1635.8,1635.7,47.52686686]
[1693676812410,8.90436769,1635.8,1635.7,47.52686686]
[1693676813187,10.50282968,1635.8,1635.7,47.52686686]
[1693676813399,8.90436769,1635.8,1635.7,47.52686686]
[1693676816731,10.50331867,1635.8,1635.7,47.52686686]
[1693676818231,11.78249226,1635.8,1635.7,47.52686686]
[1693676818601,10.50331867,1635.8,1635.7,47.52686686]